bitfinex-derivatives/quotes_ETHF0:USTF0_20260208
["timestamp","ask_amount","ask_price","bid_price","bid_amount"]
[1770583840778,42.1185853,2106.1,2105.6,0.26888869]
[1770583840981,0.58025657,2106.3,2105.7,0.26888869]
[1770583842786,0.58025657,2106.6,2105.8,0.26484102]
[1770583843188,0.58025657,2106.6,2105.7,0.2376]
[1770583843376,0.58025657,2106.5,2105.2,0.50250102]
[1770583843581,0.58025657,2106.3,2105.2,0.23766]
[1770583843787,0.58025657,2106.2,2105.2,0.50250102]
[1770583844686,0.58025657,2106.2,2105.2,0.23766]
[1770583845482,0.55403002,2106.1,2105.2,0.23766]
[1770583846289,0.55403002,2106.1,2105.2,0.50418124]
[1770583849490,0.55403002,2106.1,2105.3,0.26692502]
[1770583849785,0.55403002,2106.1,2105.2,0.23766]
[1770583850485,0.55403002,2106.1,2105.2,0.50458502]
[1770583852088,0.55403002,2106.1,2105.3,0.26757493]
[1770583852287,0.55403002,2106.1,2105.4,0.26757493]
[1770583852484,0.55403002,2106.1,2105.3,0.50489918]
[1770583855596,0.55403002,2106.1,2105.4,0.29440242]
[1770583857699,0.55403002,2106.1,2105.3,0.52791656]
[1770583857998,0.55403002,2106.1,2105.1,0.00538103]
[1770583857999,42.67261532,2106.4,2105.6,0.29026656]
[1770583858294,0.55403002,2106.3,2105.6,0.29026656]
[1770583860598,36.32081137,2106.5,2105.2,10.56560999]
[1770583860599,42.67261532,2106.5,2106.0,0.29355876]
[1770583860805,0.55403002,2106.5,2106.0,0.29355876]
[1770583861409,42.1185853,2106.7,2106.0,0.29355876]
[1770583861600,0.55403002,2106.7,2105.9,0.23758]
[1770583861909,0.55403002,2106.5,2105.9,0.23758]
[1770583863411,0.55403002,2106.5,2105.9,0.53195141]
[1770583865006,0.55403002,2106.5,2106.0,0.29914894]
[1770583865911,0.55403002,2106.6,2106.0,0.29914894]
[1770583866408,42.1185853,2106.8,2106.0,0.29914894]
[1770583866612,0.55403002,2106.8,2106.3,0.29865666]
[1770583867210,0.55403002,2106.8,2105.9,0.29865666]
[1770583867718,0.55403002,2106.8,2105.8,0.23759]
[1770583867909,0.55403002,2106.8,2105.9,0.29865666]
[1770583868413,0.55403002,2106.8,2106.0,0.29865666]
[1770583868914,0.55403002,2106.8,2106.1,0.30079731]
[1770583871110,2.83641559,2107.0,2106.4,0.29578811]
[1770583871315,0.55403002,2107.1,2106.5,0.23751]
[1770583871612,0.55403002,2107.1,2106.6,0.29578811]
[1770583871812,0.55403002,2107.1,2106.6,0.29978205]
[1770583872010,0.55403002,2107.1,2106.6,0.00399394]
[1770583872211,0.55403002,2107.4,2106.9,0.29578811]
[1770583872412,0.55403002,2107.4,2106.6,0.00399394]
[1770583872613,0.55403002,2107.3,2106.6,0.00399394]
[1770583873210,0.55855999,2107.3,2106.6,0.00399394]
[1770583873403,42.1185853,2107.7,2106.8,0.2929777]
[1770583873605,0.55403002,2107.5,2106.8,0.2929777]
[1770583873809,0.55403002,2107.5,2106.9,0.54020068]
[1770583874414,0.55854927,2107.5,2106.9,0.54020068]
[1770583875113,0.55854927,2107.5,2106.9,0.85470807]
[1770583875314,0.55854927,2107.5,2107.0,0.58481271]
[1770583876416,0.00451925,2107.5,2107.0,0.58481271]
[1770583876811,0.00451925,2107.5,2107.0,0.82227271]
[1770583877111,0.54446446,2107.8,2107.1,0.57353778]
[1770583877512,0.54446446,2108.1,2107.3,0.57353778]
[1770583877912,0.54446446,2108.1,2107.4,0.57353778]
[1770583878219,0.54993153,2108.1,2107.4,0.57353778]
[1770583878517,0.54993153,2108.1,2107.5,0.57353778]
[1770583878715,0.00546707,2108.1,2107.5,0.57353778]
[1770583878910,0.54446446,2108.3,2107.6,0.57353778]
[1770583879615,0.54446446,2108.3,2107.7,0.57353778]
[1770583879816,0.54929603,2108.3,2107.7,0.57353778]
[1770583881414,0.54929603,2108.3,2107.8,0.57353778]
[1770583881811,0.54929603,2108.3,2107.7,0.23738]
[1770583884319,0.54929603,2108.3,2107.2,0.57353778]
[1770583884816,0.54929603,2108.3,2107.4,0.57353778]
[1770583886820,0.54929603,2108.3,2107.3,0.81095778]
[1770583887016,0.54929603,2108.3,2107.4,0.57353778]
[1770583888329,0.54929603,2108.3,2107.5,0.57353778]
[1770583889329,0.54929603,2108.3,2107.6,0.57353778]
[1770583893425,0.54929603,2108.3,2107.5,0.2374]
[1770583893724,0.54929603,2108.3,2107.3,0.57353778]
[1770583893928,0.54929603,2108.3,2107.1,0.57353778]
[1770583895822,0.54929603,2108.3,2107.0,0.23746]
[1770583895823,0.54929603,2108.3,2107.2,0.81097778]
[1770583896027,0.54929603,2108.3,2107.3,0.57353778]
[1770583897933,0.54929603,2108.3,2107.4,0.57353778]
[1770583899932,0.54929603,2108.3,2107.6,0.57353778]
[1770583901629,0.54929603,2108.3,2107.5,0.2374]
[1770583901630,0.54929603,2108.3,2107.5,0.81093778]
[1770583902528,0.54929603,2108.3,2107.6,0.57353778]
[1770583903835,0.54446446,2108.2,2107.6,0.57353778]
[1770583905437,0.54151728,2108.1,2107.6,0.57353778]
[1770583910840,0.54151728,2108.2,2107.6,0.57353778]
[1770583912240,0.54151728,2108.1,2107.6,0.57353778]
[1770583916042,0.54151728,2108.1,2107.5,0.2374]
[1770583916345,0.54151728,2108.0,2107.3,0.5438697]
[1770583917546,0.54151728,2108.0,2107.5,0.2374]
[1770583917746,0.54151728,2108.0,2107.5,0.7812697]
[1770583917948,0.54151728,2108.0,2107.6,0.5438697]
[1770583921546,0.00483157,2108.3,2107.8,0.5438697]
[1770583921848,0.54151728,2108.3,2107.9,0.5438697]
[1770583922541,0.54151728,2108.7,2107.9,0.5438697]
[1770583922737,0.54692855,2108.7,2107.9,0.5438697]
[1770583925955,0.54151728,2108.6,2107.9,0.5438697]
[1770583926450,0.54151728,2108.4,2107.4,0.5438697]
[1770583926656,0.54151728,2108.2,2107.4,0.5438697]
[1770583927962,0.54151728,2108.3,2107.5,0.5438697]
[1770583929063,0.54151728,2108.3,2107.6,0.5438697]
[1770583930063,0.54151728,2108.3,2107.7,0.5438697]
[1770583932265,0.54151728,2108.2,2107.7,0.5438697]
[1770583932967,3.38311975,2108.3,2107.7,0.5438697]
[1770583937673,0.5623691,2108.2,2107.7,0.5438697]
[1770583938371,3.40397157,2108.3,2107.7,0.5438697]
[1770583939072,0.5623691,2108.3,2107.7,0.5438697]
[1770583940273,0.5623691,2108.3,2107.8,0.54696046]
[1770583944474,3.40397157,2108.6,2107.9,0.54696046]
[1770583944670,3.40397157,2108.6,2107.9,0.78432046]
[1770583944876,3.40397157,2108.6,2108.0,0.54696046]
[1770583945076,3.40397157,2108.6,2108.1,0.54696046]
[1770583945277,3.40397157,2108.6,2108.1,0.55242345]
[1770583945579,0.5623691,2108.6,2108.1,0.55242345]
[1770583946070,3.40938284,2108.7,2108.2,0.54696046]
[1770583946272,0.56778037,2108.7,2108.2,0.54696046]
[1770583948374,0.5623691,2108.6,2107.8,0.54696046]
[1770583948680,0.5623691,2108.6,2108.1,0.23734]
[1770583949475,0.5623691,2108.6,2108.1,0.24261165]
[1770583949674,0.5623691,2108.6,2108.1,0.78957211]
[1770583950377,0.5623691,2108.6,2108.2,0.54696046]
[1770583950572,0.5623691,2108.6,2108.1,0.78957211]
[1770583951473,0.5623691,2108.6,2108.2,0.54696046]
[1770583952676,0.56778037,2108.7,2108.2,0.54696046]
[1770583953179,0.00541127,2108.7,2108.2,0.54696046]
[1770583953481,0.56778037,2108.7,2108.2,0.54696046]
[1770583954278,0.56778037,2108.7,2108.1,0.24261165]
[1770583954878,0.56778037,2108.7,2108.1,0.78957211]
[1770583955576,0.56778037,2108.7,2108.2,0.54696046]
[1770583955977,0.56778037,2108.7,2108.1,0.78957211]
[1770583956183,0.56778037,2108.7,2108.2,0.54696046]
[1770583959187,0.56778037,2108.7,2108.1,0.59528544]
[1770583959984,0.56778037,2108.7,2108.1,0.00527165]
[1770583960188,0.5623691,2108.6,2108.1,0.00527165]
[1770583961086,0.5623691,2108.6,2107.8,0.35267379]
[1770583961290,0.5623691,2108.5,2107.7,0.23738]
[1770583961489,0.5623691,2108.4,2107.7,0.59012304]
[1770583962187,0.5623691,2108.4,2107.7,0.59389033]
[1770583962489,0.5623691,2108.4,2107.8,0.35274304]
[1770583964293,0.5623691,2108.4,2107.7,0.59756269]
[1770583964494,0.5623691,2108.4,2107.8,0.35687427]
[1770583965790,0.5623691,2108.4,2107.7,0.598107]
[1770583968192,0.5623691,2108.4,2107.8,0.355764]
[1770583968597,0.5623691,2108.4,2107.7,0.59500988]
[1770583968797,0.5623691,2108.4,2107.8,0.35386259]
[1770583976201,0.5623691,2108.4,2107.9,0.35481118]
[1770583976400,0.54896561,2108.6,2108.0,0.35481118]
[1770583976898,0.30616262,2108.6,2108.0,0.59216118]
[1770583977497,0.30616262,2108.6,2108.0,0.23735]
[1770583977700,0.54896561,2108.5,2108.0,0.23735]
[1770583979904,0.54896561,2108.3,2107.7,0.58364191]
[1770583981001,0.54896561,2108.3,2107.7,0.00376729]
[1770583981202,0.54896561,2108.0,2107.4,0.57987462]
[1770583981398,0.54896561,2108.0,2107.6,0.57987462]
[1770583981596,0.54896561,2108.2,2107.6,0.57987462]
[1770583982102,0.54896561,2108.2,2107.6,0.58560621]
[1770583982494,0.54896561,2108.2,2107.8,0.57987462]
[1770583982705,0.54896561,2108.4,2108.0,0.57987462]
[1770583982900,0.54896561,2108.4,2107.8,0.57987462]
[1770583983103,0.07421561,2108.4,2108.0,0.57987462]
[1770583984702,2.84701374,2108.7,2108.0,0.57987462]
[1770583984907,2.84701374,2108.7,2108.2,0.57987462]
[1770583984908,0.00541127,2108.7,2108.2,0.57987462]
[1770583985106,0.55437688,2108.7,2108.2,0.57987462]
[1770583986207,0.00541127,2108.7,2108.2,0.57987462]
[1770583986708,0.55437688,2108.7,2108.2,0.57987462]
[1770583989816,0.00541127,2108.7,2108.2,0.57987462]
[1770583990018,0.00541127,2108.7,2108.2,2.38114804]
[1770583990215,0.00541127,2108.7,2108.3,0.57987462]
[1770583992619,0.55437688,2108.7,2108.3,0.57987462]
[1770583993722,0.00541127,2108.7,2108.3,0.57987462]
[1770583996321,0.58214548,2109.1,2108.6,0.55749654]
[1770583997428,0.58700278,2109.1,2108.6,0.55749654]
[1770583998133,0.58214548,2108.9,2107.9,4.48549353]
[1770583998323,2.3834189,2108.5,2108.0,0.55749654]
[1770583998628,1.80127342,2108.9,2108.0,0.55749654]
[1770583998928,0.58214548,2108.8,2108.0,0.55749654]
[1770583999121,0.58214548,2108.6,2108.0,0.55749654]
[1770584001628,0.58214548,2108.6,2107.9,0.79484654]
[1770584001926,0.58214548,2108.4,2107.9,0.79484654]
[1770584004026,0.58214548,2108.4,2107.9,0.23735]
[1770584005230,0.58214548,2108.2,2107.6,0.00573159]
[1770584005529,0.58214548,2108.0,2107.6,0.00573159]
[1770584005728,0.58214548,2108.0,2107.5,0.55749654]
[1770584006326,2.84160247,2108.4,2102.0,33.1392042]
[1770584006327,0.58214548,2107.7,2106.9,2.12713023]
[1770584006531,0.47762605,2107.0,2106.5,0.55749654]
[1770584006734,0.49638638,2106.8,2106.3,0.55749654]
[1770584007333,0.49638638,2106.8,2106.2,0.32017077]
[1770584007727,0.49638638,2106.8,2106.2,0.00384597]
[1770584009527,0.49638638,2106.8,2106.2,0.56134251]
[1770584010130,0.49638638,2106.8,2106.2,0.00384597]
[1770584010330,0.49638638,2106.8,2105.7,0.79510654]
[1770584010634,0.49638638,2106.8,2105.6,0.55749654]
[1770584011336,0.49638638,2106.8,2105.7,0.55749654]
[1770584011539,0.49638638,2106.8,2105.6,0.31323366]
[1770584012133,0.49638638,2106.8,2105.6,0.8707302]
[1770584013633,0.49638638,2106.8,2105.7,0.55749654]
[1770584016632,0.49638638,2106.8,2105.6,0.55085366]
[1770584016633,0.49638638,2106.8,2105.9,0.55749654]
[1770584017637,0.49638638,2106.8,2106.0,0.55749654]
[1770584020541,0.58214548,2106.7,2105.6,0.56280488]
[1770584020740,0.58214548,2106.7,2105.6,0.00530834]
[1770584024334,0.58214548,2106.7,2105.6,0.56280488]
[1770584027543,0.58032688,2106.3,2105.6,0.00530834]
[1770584027748,0.58032688,2106.3,2105.3,0.3170676]
[1770584027949,0.58032688,2106.3,2105.3,0.86196867]
[1770584028545,0.58032688,2106.3,2105.3,0.54490107]
[1770584028748,0.58032688,2106.3,2105.3,0.00367607]
[1770584030152,0.58032688,2106.3,2105.3,0.54857714]
[1770584031547,0.58032688,2106.3,2105.4,0.54490107]
[1770584036257,0.58032688,2106.2,2105.4,0.54490107]
[1770584037849,0.58032688,2106.2,2105.3,0.78622714]
[1770584038049,3.38557636,2106.2,2105.3,0.00367607]
[1770584038254,0.58032688,2106.0,2105.3,0.00367607]
[1770584039457,0.58032688,2105.9,2105.3,0.00367607]
[1770584040058,0.58032688,2105.9,2105.0,0.30575969]
[1770584040059,0.58032688,2105.8,2105.0,0.85066076]
[1770584040658,0.58032688,2105.7,2104.8,0.23771]
[1770584040860,0.58032688,2105.6,2104.9,0.54490107]
[1770584041061,0.58032688,2105.6,2104.9,0.54836623]
[1770584041362,3.38557636,2105.6,2104.9,0.54836623]
[1770584041768,0.58032688,2105.6,2104.9,0.54836623]
[1770584042563,3.38557636,2105.8,2105.0,0.54490107]
[1770584043158,0.58032688,2105.8,2105.0,0.54490107]
[1770584043360,0.58032688,2105.9,2105.1,0.54490107]
[1770584043661,2.80524948,2106.1,2105.1,0.54490107]
[1770584043662,0.58032688,2106.0,2105.2,0.54490107]
[1770584044361,0.58032688,2105.9,2105.2,0.54490107]
[1770584047562,0.58032688,2105.7,2104.9,0.00346516]
[1770584047758,3.38557636,2105.7,2104.9,0.00346516]
[1770584047959,0.58032688,2105.6,2104.9,0.86253647]
[1770584048170,3.38557636,2105.6,2104.9,0.00346516]
[1770584048368,0.58032688,2105.5,2104.9,0.00346516]
[1770584048762,0.58381312,2105.5,2104.9,0.00346516]
[1770584048956,0.58032688,2105.4,2104.9,0.00346516]
[1770584049366,0.58032688,2105.4,2104.7,0.54490107]
[1770584050169,3.38557636,2105.4,2104.7,0.54490107]
[1770584050372,0.58032688,2105.3,2104.7,0.54964088]
[1770584050767,2.80524948,2105.4,2104.8,0.54490107]
[1770584050964,0.58381312,2105.5,2104.8,0.54490107]
[1770584051259,3.3890626,2105.5,2104.8,0.54490107]
[1770584051463,0.58032688,2105.4,2104.8,0.54490107]
[1770584054078,3.3890626,2105.5,2104.8,0.54490107]
[1770584055580,0.54620336,2104.8,2103.8,0.56830152]
[1770584055872,0.54620336,2104.6,2104.1,0.56830152]
[1770584056076,4.65193892,2104.5,2104.1,0.56830152]
[1770584056280,0.54620336,2104.5,2104.1,3.14543483]
[1770584056478,0.54620336,2104.5,2104.1,3.15124957]
[1770584056778,0.54620336,2104.5,2104.1,2.58294805]
[1770584057173,0.54620336,2104.5,2104.1,0.00581474]
[1770584057370,4.15839334,2104.4,2103.9,0.58877857]
[1770584057569,2.84362794,2104.7,2103.9,0.58877857]
[1770584057570,4.15851896,2104.3,2103.9,1.77080374]
[1770584057767,2.84362794,2104.6,2103.7,0.58877857]
[1770584057984,7.00232944,2104.5,2103.7,1.77080374]
[1770584058180,4.1587015,2104.4,2103.5,0.58877857]
[1770584058375,4.1587015,2104.3,2103.5,0.59242122]
[1770584058574,4.1587015,2104.2,2103.6,2.36414163]
[1770584058781,2.84362794,2104.5,2103.7,0.59333789]
[1770584058975,4.15381001,2104.4,2103.8,1.77080374]
[1770584059183,4.15381001,2104.3,2103.8,1.77080374]
[1770584059474,4.15381001,2104.2,2103.8,1.77080374]
[1770584059681,2.84362794,2104.5,2103.8,1.77080374]
[1770584059884,4.14942735,2104.4,2103.8,1.77080374]
[1770584060084,4.14942735,2104.3,2103.8,1.77080374]
[1770584060383,5.67995613,2104.9,2103.9,0.59333789]
[1770584060384,2.84362794,2104.6,2103.9,0.59333789]
[1770584060681,2.84362794,2104.9,2104.1,0.58420852]
[1770584060877,4.15429097,2104.8,2104.1,0.58420852]
[1770584061076,0.00914009,2104.8,2104.2,2.35501226]
[1770584061275,0.00914009,2104.8,2104.2,0.58420852]
[1770584061483,0.00914009,2104.8,2104.3,2.35501226]
[1770584061683,0.00914009,2104.8,2104.3,0.58420852]
[1770584061885,0.00914009,2105.0,2104.4,0.58420852]
[1770584062085,4.15288744,2104.9,2104.4,0.58420852]
[1770584062376,0.00914009,2104.9,2104.5,2.35501226]
[1770584062683,0.01224656,2105.0,2104.5,0.58420852]
[1770584062883,0.01224656,2105.0,2104.6,1.77080374]
[1770584063381,0.01224656,2105.3,2104.7,0.58265529]
[1770584063776,0.01224656,2105.3,2104.9,0.58265529]
[1770584064282,0.0157328,2105.5,2104.9,2.35345903]
[1770584064581,4.15572776,2105.4,2105.0,2.35345903]
[1770584064784,4.1434812,2105.3,2105.0,0.58629794]
[1770584064984,0.00348624,2105.5,2105.0,2.35710168]
[1770584065181,4.14346426,2105.4,2105.0,2.35710168]
[1770584065382,4.14346426,2105.3,2105.0,2.35710168]
[1770584065680,2.84711418,2105.5,2105.0,2.35710168]
[1770584065872,2.84362794,2105.9,2105.1,0.58874591]
[1770584066077,0.00355155,2106.1,2105.1,0.58874591]
[1770584066277,0.00355155,2106.1,2105.3,0.58700279]
[1770584066687,0.00355155,2106.1,2105.5,0.58561043]
[1770584066979,0.00804812,2106.1,2105.5,0.58561043]
[1770584067573,0.00804812,2106.1,2105.6,2.35641417]
[1770584067779,0.00804812,2106.1,2105.6,0.58561043]
[1770584069180,0.0071956,2106.7,2105.8,0.58518077]
[1770584069382,0.0071956,2106.7,2106.0,0.58518077]
[1770584069781,0.0071956,2106.7,2106.1,2.35598451]
[1770584069981,0.0071956,2106.7,2106.1,0.58518077]
[1770584070181,0.01093416,2106.7,2106.1,0.58518077]
[1770584072174,0.00373856,2106.7,2106.3,0.58497713]
[1770584072485,0.00760288,2106.9,2106.3,0.58497713]
[1770584072685,0.00760288,2106.9,2106.5,0.58464361]
[1770584072885,30.719,2107.2,2106.5,0.58464361]
[1770584073082,30.719,2107.2,2106.5,2.35544735]
[1770584073285,30.72370649,2107.2,2106.5,2.3598856]
[1770584075382,2.98065593,2107.0,2105.8,0.58972438]
[1770584075591,0.54620336,2106.9,2105.4,0.56830152]
[1770584075781,0.54620336,2106.8,2105.4,0.56830152]
[1770584075986,0.54620336,2106.7,2105.5,2.33910526]
[1770584076189,0.54620336,2106.5,2105.5,2.33910526]
[1770584076386,0.54620336,2106.5,2105.2,0.56830152]
[1770584076387,0.54620336,2106.4,2105.2,0.56830152]
[1770584077586,0.54620336,2106.4,2105.2,0.57398504]
[1770584077587,0.54620336,2106.3,2105.2,0.57398504]
[1770584077982,0.54620336,2106.1,2105.2,0.57398504]
[1770584078184,0.54620336,2105.9,2105.2,0.57398504]
[1770584079483,0.54620336,2105.7,2104.8,0.56830152]
[1770584080289,0.5509844,2105.7,2104.8,0.56830152]
[1770584082789,0.5509844,2105.7,2104.4,0.23775]
[1770584082790,0.5509844,2105.7,2104.4,0.56830152]
[1770584083095,0.54620336,2105.5,2104.4,0.56830152]
[1770584083394,0.54620336,2105.3,2104.4,0.56830152]
[1770584085398,0.54710329,2105.1,2104.4,0.56830152]
[1770584085696,0.54710329,2104.9,2103.7,0.53904831]
[1770584085895,0.54710329,2104.7,2103.7,0.53904831]
[1770584086197,0.54710329,2104.5,2103.7,0.53904831]
[1770584088296,0.54710329,2104.5,2103.0,0.53904831]
[1770584088495,0.54710329,2104.5,2103.3,0.53904831]
[1770584089292,0.54710329,2104.5,2103.4,0.53904831]
[1770584094107,0.54710329,2104.3,2103.1,0.53904831]
[1770584094409,0.54710329,2104.1,2103.1,0.53904831]
[1770584094598,0.55308415,2104.1,2103.1,0.53904831]
[1770584094798,0.55308415,2104.1,2103.2,0.53904831]
[1770584096207,0.55308415,2104.1,2103.0,0.53904831]
[1770584096502,0.55308415,2104.1,2102.3,0.53904831]
[1770584096701,0.54710329,2103.8,2102.3,0.53904831]
[1770584096999,2.98065593,2103.0,2101.6,0.53904831]
[1770584097301,0.58848004,2103.1,2101.6,6.22803393]
[1770584097502,0.58848004,2103.1,2101.3,0.2381]
[1770584097713,0.58848004,2102.2,2101.3,0.2381]
[1770584098005,0.58848004,2102.2,2100.6,6.145]
[1770584098205,0.58848004,2102.2,2100.8,0.23816]
[1770584098404,0.58848004,2102.7,2100.8,6.2415646]
[1770584098607,0.59451076,2102.7,2100.9,5.46132609]
[1770584098808,0.00603072,2102.7,2100.9,11.70289069]
[1770584099005,0.00603072,2102.7,2100.8,5.46132609]
[1770584099303,0.59720062,2102.7,2101.6,0.23807]
[1770584101406,0.59720062,2102.7,2101.0,0.23814]
[1770584101708,0.59720062,2102.7,2101.1,6.36751177]
[1770584101903,0.59720062,2102.7,2101.3,0.2381]
[1770584102100,0.59720062,2102.7,2101.5,0.23808]
[1770584102302,0.59720062,2102.7,2101.7,0.23806]
[1770584102806,42.60195126,2103.8,2102.2,0.238]
[1770584102807,0.59206698,2103.8,2102.2,0.238]
[1770584103107,0.59206698,2103.4,2102.2,0.238]
[1770584103307,0.59206698,2103.4,2101.8,6.27028179]
[1770584103308,0.59206698,2103.4,2102.3,0.23799]
[1770584103703,0.59624315,2103.4,2102.3,0.24196769]
[1770584104612,0.59624315,2103.4,2102.4,0.00157269]
[1770584105204,0.58769369,2103.0,2102.3,0.24196769]
[1770584105511,0.58769369,2103.0,2102.4,0.00157269]
[1770584105905,0.58769369,2103.0,2102.3,0.24354038]
[1770584106309,0.58769369,2103.0,2102.4,0.00157269]
[1770584106907,0.54710329,2102.4,2100.8,0.24111107]
[1770584107105,0.54710329,2102.3,2101.2,0.47922107]
[1770584107305,0.54710329,2102.3,2101.3,0.24111107]
[1770584107605,0.54710329,2102.3,2101.2,0.47922107]
[1770584107899,0.54710329,2102.3,2101.2,0.4812741]
[1770584108505,0.54710329,2102.3,2101.2,0.24016303]
[1770584108806,2.9873051,2102.4,2101.0,0.24111107]
[1770584108807,0.54710329,2101.9,2101.0,0.24111107]
[1770584109812,0.55221545,2101.9,2101.0,0.24111107]
[1770584110013,0.55221545,2101.9,2101.0,0.03111107]
[1770584110203,0.5736661,2101.7,2100.5,0.02962786]
[1770584110515,0.5736661,2101.7,2100.8,0.02962786]
[1770584111504,0.5736661,2101.7,2100.9,0.024942]
[1770584112012,0.5811212,2101.9,2101.1,0.024942]
[1770584112315,0.5811212,2101.9,2100.6,0.36635617]
[1770584112316,0.5811212,2101.9,2101.2,0.024942]
[1770584113315,0.5811212,2101.9,2101.2,0.263052]
[1770584114009,0.5811212,2101.9,2101.2,0.23811]
[1770584114501,0.5811212,2101.9,2100.8,6.15]
[1770584114701,0.5811212,2101.9,2100.7,0.04593463]
[1770584115511,0.5811212,2101.9,2100.6,0.60453617]
[1770584115512,0.56550113,2101.7,2100.6,0.60453617]
[1770584115913,0.56550113,2101.7,2100.6,0.23818]
[1770584116705,0.55810502,2100.8,2100.1,0.30192983]
[1770584116910,0.55810502,2100.8,2100.0,0.59529589]
[1770584117418,0.55810502,2100.8,2100.0,0.58845974]
[1770584117912,0.55810502,2100.8,2099.9,0.82671974]
[1770584118411,0.55810502,2101.4,2100.3,0.58845974]
[1770584118714,0.55810502,2101.4,2100.5,0.58845974]
[1770584119310,0.55810502,2101.4,2100.7,0.58845974]
[1770584119815,0.55810502,2101.7,2100.8,0.58845974]
[1770584120004,0.56321718,2101.9,2101.1,0.23812]
[1770584120823,0.56321718,2101.9,2101.2,0.58845974]
[1770584121116,0.56321718,2101.9,2101.1,0.23812]
[1770584122713,0.56321718,2101.9,2101.2,0.58845974]
[1770584122909,0.00511216,2101.9,2101.3,0.82655974]
[1770584123115,0.00305913,2101.9,2101.4,0.58845974]
[1770584124223,0.55810502,2102.2,2101.5,0.58845974]
[1770584125120,0.56300635,2102.2,2101.5,0.58845974]
[1770584126019,0.56300635,2102.2,2101.4,0.24014303]
[1770584126516,0.56300635,2102.2,2101.4,0.82860277]
[1770584126914,0.56300635,2102.2,2101.5,0.58845974]
[1770584129122,0.56300635,2102.2,2101.6,0.58845974]
[1770584130220,0.56300635,2102.2,2101.5,0.23808]
[1770584132717,0.55810502,2102.0,2101.5,0.23808]
[1770584133118,0.55810502,2102.0,2101.5,0.82653974]
[1770584134223,0.55810502,2102.0,2101.6,0.58845974]
[1770584137429,0.55810502,2102.0,2101.5,0.23808]
[1770584137628,0.55810502,2102.0,2101.5,0.82653974]
[1770584137930,0.55810502,2102.0,2101.6,0.58845974]
[1770584138138,0.34810502,2102.0,2101.6,0.58845974]
[1770584140834,0.00490133,2102.2,2101.6,0.58845974]
[1770584141030,0.55810502,2102.4,2102.0,0.58845974]
[1770584141231,0.55810502,2102.5,2102.0,0.58845974]
[1770584142233,0.56276457,2102.5,2102.0,0.58845974]
[1770584142528,0.00465955,2102.5,2102.0,0.58845974]
[1770584143124,2.83018548,2102.9,2102.2,0.58845974]
[1770584143326,0.55810502,2102.8,2102.2,0.58845974]
[1770584143526,0.55810502,2102.8,2102.3,0.58845974]
[1770584143723,3.3882905,2102.9,2102.4,0.58845974]
[1770584143933,0.55810502,2102.9,2102.4,0.58845974]
[1770584144131,0.56162033,2102.9,2102.4,0.58845974]
[1770584144529,0.56162033,2102.9,2102.3,0.23799]
[1770584145335,0.56162033,2102.9,2102.3,0.79729342]
[1770584147435,0.56162033,2102.9,2102.4,0.55930342]
[1770584147741,0.00351531,2102.9,2102.5,0.55930342]
[1770584148128,0.56089151,2103.1,2102.5,0.55930342]
[1770584148530,0.56089151,2103.1,2102.6,0.55930342]
[1770584148736,3.39107699,2103.2,2102.6,0.55930342]
[1770584149140,3.3950672,2103.2,2102.6,0.55930342]
[1770584149433,0.56089151,2103.1,2102.6,0.55930342]
[1770584151240,0.56089151,2103.1,2102.5,0.79727342]
[1770584152943,0.56089151,2102.9,2102.5,0.79727342]
[1770584155340,0.56089151,2103.1,2102.6,0.55930342]
[1770584155643,4.14552103,2103.0,2102.6,0.55930342]
[1770584155839,0.56089151,2103.1,2102.6,0.55930342]
[1770584157239,0.00399021,2103.2,2103.0,0.55930342]
[1770584157439,0.00399021,2103.2,2103.0,0.56284985]
[1770584157640,0.56089151,2103.4,2103.0,0.56284985]
[1770584158744,0.56669165,2103.4,2103.0,0.56284985]
[1770584159039,0.56089151,2103.6,2103.0,0.24145643]
[1770584159243,0.56089151,2103.6,2103.0,0.80075985]
[1770584159543,0.56089151,2103.6,2103.1,0.55930342]
[1770584160147,0.56668694,2103.6,2103.1,0.55930342]
[1770584160643,0.00579543,2103.6,2103.1,0.55930342]
[1770584160840,0.00579543,2103.6,2103.1,0.79720342]
[1770584161143,0.00579543,2103.6,2103.2,0.55930342]
[1770584161947,0.56668694,2103.6,2103.0,0.00354643]
[1770584162148,0.56089151,2103.3,2102.6,0.79726342]
[1770584162540,0.56089151,2103.3,2102.7,0.55930342]
[1770584163249,0.56089151,2103.3,2102.7,0.56515786]
[1770584164342,4.7010222,2103.2,2102.7,0.56515786]
[1770584164546,0.56089151,2103.2,2102.7,0.56515786]
[1770584165650,3.39687242,2103.6,2103.0,0.55930342]
[1770584165945,0.56089151,2103.4,2103.0,0.55930342]
[1770584166344,0.56668694,2103.6,2103.0,0.55930342]
[1770584166645,4.14162689,2103.5,2103.0,0.55930342]
[1770584166850,0.56668694,2103.6,2103.1,0.55930342]
[1770584167043,0.00579543,2103.6,2103.1,0.55930342]
[1770584167249,0.00579543,2103.6,2103.2,0.55930342]
[1770584168750,0.56089151,2104.1,2103.5,0.55930342]
[1770584169642,0.56666586,2104.1,2103.5,0.55930342]
[1770584170356,0.56089151,2103.9,2103.1,0.55930342]
[1770584170550,0.56089151,2103.7,2103.1,0.55930342]
[1770584171452,0.56089151,2103.7,2103.4,0.23786]
[1770584171658,0.56089151,2103.7,2103.1,0.55930342]
[1770584172558,0.56089151,2103.7,2103.4,0.23786]
[1770584173759,0.56089151,2103.7,2103.2,0.55930342]
[1770584174454,0.56089151,2103.7,2103.4,0.23786]
[1770584174658,0.56089151,2103.7,2103.2,0.55930342]
[1770584175561,0.56089151,2103.7,2103.4,0.23786]
[1770584175770,0.56089151,2103.7,2102.7,0.56037898]
[1770584176057,0.55023305,2103.4,2102.9,0.23792]
[1770584176255,0.55023305,2103.2,2102.7,0.00585444]
[1770584177061,0.55023305,2103.2,2102.9,0.23792]
[1770584177363,0.55023305,2103.0,2102.7,0.00585444]
[1770584179864,0.55023305,2103.0,2102.7,0.56037898]
[1770584180061,2.83018548,2103.2,2102.7,0.56037898]
[1770584180264,4.69953993,2103.1,2102.7,0.56037898]
[1770584180464,0.55023305,2103.1,2102.7,0.56037898]
[1770584180860,4.14933947,2103.0,2102.7,0.56037898]
[1770584181158,0.55023305,2103.1,2102.7,0.56037898]
[1770584181360,4.14955656,2103.0,2102.7,0.56037898]
[1770584181564,0.55023305,2103.1,2102.7,0.56037898]
[1770584181864,4.14955694,2103.0,2102.7,0.56037898]
[1770584182162,0.55023305,2103.1,2102.7,0.56037898]
[1770584182459,0.55023305,2102.9,2102.1,0.23801]
[1770584182659,4.15036338,2102.8,2102.1,0.54444534]
[1770584182863,0.55023305,2102.7,2102.1,0.54444534]
[1770584183061,0.55023305,2102.4,2101.6,0.30643534]
[1770584183262,0.55023305,2102.2,2101.4,0.54452534]
[1770584183458,0.55386776,2102.2,2101.4,0.54877975]
[1770584184058,0.55023305,2102.0,2101.4,0.24234441]
[1770584187664,0.55023305,2102.0,2101.4,0.63406895]
[1770584187862,0.00363471,2102.2,2101.5,0.28619472]
[1770584188068,8.828e-05,2102.2,2102.0,0.28619472]
[1770584188456,8.828e-05,2102.2,2101.9,0.23804]